{"text_format":"1","workbook":"xlsx","n_sheets":5,"sheets":["ACCUEIL","Escalade Eiffel","MACROS","APPEL","DEBUT"],"not_rendered":{"charts":6,"images":4,"macros":1,"external_links":0,"defined_names":14,"comments":0,"pivot_tables":0},"unopened":[],"bounds":{"document_bytes":16777216,"sheet_cells":100000,"rows_first":2000,"rows_last":500,"rows_between":2000,"halvings":0,"cell_chars":16384,"cell_head_chars":4096},"cells_cut":0,"cells_raw":0,"read":"whole","date_system":"1900"}

{"sheet":"ACCUEIL","index":0,"n_rows":11,"n_cols":4,"rows_kept":11,"cut":false,"hidden":false,"merged":[]}
[]
[]
[]
[]
[null,"ACCUEIL","CLASSES","DEBUT"]
[]
[]
[]
[]
[]
[null,null,null,"APP3"]

{"sheet":"Escalade Eiffel","index":1,"n_rows":88,"n_cols":23,"rows_kept":88,"cut":false,"hidden":false,"merged":[[43,11,43,12],[43,14,43,15],[43,17,43,18],[50,19,50,21],[0,3,1,22],[34,2,34,3],[34,5,34,6],[34,8,34,9],[34,11,34,12],[34,14,34,15],[34,17,34,18],[43,2,43,3],[43,5,43,6],[43,8,43,9],[3,17,3,18],[12,17,12,18],[19,19,19,21],[3,2,3,3],[3,5,3,6],[3,8,3,9],[3,11,3,12],[3,14,3,15],[12,2,12,3],[12,5,12,6],[12,8,12,9],[12,11,12,12],[12,14,12,15],[80,19,80,21],[64,17,64,18],[73,2,73,3],[73,5,73,6],[73,8,73,9],[73,11,73,12],[73,14,73,15],[73,17,73,18],[64,2,64,3],[64,5,64,6],[64,8,64,9],[64,11,64,12],[64,14,64,15]]}
[null,"Classe ",null,"Ascension de la Tour Eiffel par équipe"]
[null,"4e5"]
[]
[null,null,"VOIE 1",null,null,"VOIE 2",null,null,"VOIE 3",null,null,"VOIE 4",null,null,"VOIE 5",null,null,"VOIE 6"]
[null,"Equipe","Nb anneaux","Mètres",null,"Nb anneaux","Mètres",null,"Nb anneaux","Mètres",null,"Nb anneaux","Mètres",null,"Nb anneaux","Mètres",null,"Nb anneaux","Mètres"]
[null,"Christine","N'a pas grimpé",{"$f":"VLOOKUP(C6,DEBUT!$G$7:$H$11,2,FALSE)","v":0},null,"N'a pas grimpé",{"$f":"VLOOKUP(F6,DEBUT!$G$7:$H$11,2,FALSE)","v":0},null,"N'a pas grimpé",{"$f":"VLOOKUP(I6,DEBUT!$G$7:$H$11,2,FALSE)","v":0},null,"N'a pas grimpé",{"$f":"VLOOKUP(L6,DEBUT!$G$7:$H$11,2,FALSE)","v":0},null,"N'a pas grimpé",{"$f":"VLOOKUP(O6,DEBUT!$G$7:$H$11,2,FALSE)","v":0},null,"N'a pas grimpé",{"$f":"VLOOKUP(R6,DEBUT!$G$7:$H$11,2,FALSE)","v":0}]
[null,"Eric","N'a pas grimpé",{"$f":"VLOOKUP(C7,DEBUT!$G$7:$H$11,2,FALSE)","v":0},null,"N'a pas grimpé",{"$f":"VLOOKUP(F7,DEBUT!$G$7:$H$11,2,FALSE)","v":0},null,"N'a pas grimpé",{"$f":"VLOOKUP(I7,DEBUT!$G$7:$H$11,2,FALSE)","v":0},null,"N'a pas grimpé",{"$f":"VLOOKUP(L7,DEBUT!$G$7:$H$11,2,FALSE)","v":0},null,"N'a pas grimpé",{"$f":"VLOOKUP(O7,DEBUT!$G$7:$H$11,2,FALSE)","v":0},null,"N'a pas grimpé",{"$f":"VLOOKUP(R7,DEBUT!$G$7:$H$11,2,FALSE)","v":0}]
[null,"Audrey","N'a pas grimpé",{"$f":"VLOOKUP(C8,DEBUT!$G$7:$H$11,2,FALSE)","v":0},null,"N'a pas grimpé",{"$f":"VLOOKUP(F8,DEBUT!$G$7:$H$11,2,FALSE)","v":0},null,"N'a pas grimpé",{"$f":"VLOOKUP(I8,DEBUT!$G$7:$H$11,2,FALSE)","v":0},null,"N'a pas grimpé",{"$f":"VLOOKUP(L8,DEBUT!$G$7:$H$11,2,FALSE)","v":0},null,"N'a pas grimpé",{"$f":"VLOOKUP(O8,DEBUT!$G$7:$H$11,2,FALSE)","v":0},null,"N'a pas grimpé",{"$f":"VLOOKUP(R8,DEBUT!$G$7:$H$11,2,FALSE)","v":0}]
[null,"Julien","N'a pas grimpé",{"$f":"VLOOKUP(C9,DEBUT!$G$7:$H$11,2,FALSE)","v":0},null,"N'a pas grimpé",{"$f":"VLOOKUP(F9,DEBUT!$G$7:$H$11,2,FALSE)","v":0},null,"N'a pas grimpé",{"$f":"VLOOKUP(I9,DEBUT!$G$7:$H$11,2,FALSE)","v":0},null,"N'a pas grimpé",{"$f":"VLOOKUP(L9,DEBUT!$G$7:$H$11,2,FALSE)","v":0},null,"N'a pas grimpé",{"$f":"VLOOKUP(O9,DEBUT!$G$7:$H$11,2,FALSE)","v":0},null,"N'a pas grimpé",{"$f":"VLOOKUP(R9,DEBUT!$G$7:$H$11,2,FALSE)","v":0}]
[null,"Julien","N'a pas grimpé",{"$f":"VLOOKUP(C10,DEBUT!$G$7:$H$11,2,FALSE)","v":0},null,"N'a pas grimpé",{"$f":"VLOOKUP(F10,DEBUT!$G$7:$H$11,2,FALSE)","v":0},null,"N'a pas grimpé",{"$f":"VLOOKUP(I10,DEBUT!$G$7:$H$11,2,FALSE)","v":0},null,"N'a pas grimpé",{"$f":"VLOOKUP(L10,DEBUT!$G$7:$H$11,2,FALSE)","v":0},null,"N'a pas grimpé",{"$f":"VLOOKUP(O10,DEBUT!$G$7:$H$11,2,FALSE)","v":0},null,"N'a pas grimpé",{"$f":"VLOOKUP(R10,DEBUT!$G$7:$H$11,2,FALSE)","v":0}]
[null,"EQUIPE",null,{"$f":"SUM(D6:D10)","v":0},null,null,{"$f":"SUM(G6:G10)","v":0},null,null,{"$f":"SUM(J6:J10)","v":0},null,null,{"$f":"SUM(M6:M10)","v":0},null,null,{"$f":"SUM(P6:P10)","v":0},null,null,{"$f":"SUM(S6:S10)","v":0}]
[]
[null,null,"VOIE 7",null,null,"VOIE 8",null,null,"VOIE 9",null,null,"VOIE 10",null,null,"VOIE 11",null,null,"VOIE 12"]
[null,"Equipe","Nb anneaux","Mètres",null,"Nb anneaux","Mètres",null,"Nb anneaux","Mètres",null,"Nb anneaux","Mètres",null,"Nb anneaux","Mètres",null,"Nb anneaux","Mètres"]
[null,{"$f":"B6","v":"Christine"},"N'a pas grimpé",{"$f":"VLOOKUP(C15,DEBUT!$G$7:$H$11,2,FALSE)","v":0},null,"N'a pas grimpé",{"$f":"VLOOKUP(F15,DEBUT!$G$7:$H$11,2,FALSE)","v":0},null,"N'a pas grimpé",{"$f":"VLOOKUP(I15,DEBUT!$G$7:$H$11,2,FALSE)","v":0},null,"N'a pas grimpé",{"$f":"VLOOKUP(L15,DEBUT!$G$7:$H$11,2,FALSE)","v":0},null,"N'a pas grimpé",{"$f":"VLOOKUP(O15,DEBUT!$G$7:$H$11,2,FALSE)","v":0},null,"N'a pas grimpé",{"$f":"VLOOKUP(R15,DEBUT!$G$7:$H$11,2,FALSE)","v":0}]
[null,{"$f":"B7","v":"Eric"},"N'a pas grimpé",{"$f":"VLOOKUP(C16,DEBUT!$G$7:$H$11,2,FALSE)","v":0},null,"N'a pas grimpé",{"$f":"VLOOKUP(F16,DEBUT!$G$7:$H$11,2,FALSE)","v":0},null,"N'a pas grimpé",{"$f":"VLOOKUP(I16,DEBUT!$G$7:$H$11,2,FALSE)","v":0},null,"N'a pas grimpé",{"$f":"VLOOKUP(L16,DEBUT!$G$7:$H$11,2,FALSE)","v":0},null,"N'a pas grimpé",{"$f":"VLOOKUP(O16,DEBUT!$G$7:$H$11,2,FALSE)","v":0},null,"N'a pas grimpé",{"$f":"VLOOKUP(R16,DEBUT!$G$7:$H$11,2,FALSE)","v":0}]
[null,{"$f":"B8","v":"Audrey"},"N'a pas grimpé",{"$f":"VLOOKUP(C17,DEBUT!$G$7:$H$11,2,FALSE)","v":0},null,"N'a pas grimpé",{"$f":"VLOOKUP(F17,DEBUT!$G$7:$H$11,2,FALSE)","v":0},null,"N'a pas grimpé",{"$f":"VLOOKUP(I17,DEBUT!$G$7:$H$11,2,FALSE)","v":0},null,"N'a pas grimpé",{"$f":"VLOOKUP(L17,DEBUT!$G$7:$H$11,2,FALSE)","v":0},null,"N'a pas grimpé",{"$f":"VLOOKUP(O17,DEBUT!$G$7:$H$11,2,FALSE)","v":0},null,"N'a pas grimpé",{"$f":"VLOOKUP(R17,DEBUT!$G$7:$H$11,2,FALSE)","v":0}]
[null,{"$f":"B9","v":"Julien"},"N'a pas grimpé",{"$f":"VLOOKUP(C18,DEBUT!$G$7:$H$11,2,FALSE)","v":0},null,"N'a pas grimpé",{"$f":"VLOOKUP(F18,DEBUT!$G$7:$H$11,2,FALSE)","v":0},null,"N'a pas grimpé",{"$f":"VLOOKUP(I18,DEBUT!$G$7:$H$11,2,FALSE)","v":0},null,"N'a pas grimpé",{"$f":"VLOOKUP(L18,DEBUT!$G$7:$H$11,2,FALSE)","v":0},null,"N'a pas grimpé",{"$f":"VLOOKUP(O18,DEBUT!$G$7:$H$11,2,FALSE)","v":0},null,"N'a pas grimpé",{"$f":"VLOOKUP(R18,DEBUT!$G$7:$H$11,2,FALSE)","v":0}]
[null,{"$f":"B10","v":"Julien"},"N'a pas grimpé",{"$f":"VLOOKUP(C19,DEBUT!$G$7:$H$11,2,FALSE)","v":0},null,"N'a pas grimpé",{"$f":"VLOOKUP(F19,DEBUT!$G$7:$H$11,2,FALSE)","v":0},null,"N'a pas grimpé",{"$f":"VLOOKUP(I19,DEBUT!$G$7:$H$11,2,FALSE)","v":0},null,"N'a pas grimpé",{"$f":"VLOOKUP(L19,DEBUT!$G$7:$H$11,2,FALSE)","v":0},null,"N'a pas grimpé",{"$f":"VLOOKUP(O19,DEBUT!$G$7:$H$11,2,FALSE)","v":0},null,"N'a pas grimpé",{"$f":"VLOOKUP(R19,DEBUT!$G$7:$H$11,2,FALSE)","v":0}]
[null,"EQUIPE",null,{"$f":"SUM(D15:D19)","v":0},null,null,{"$f":"SUM(G15:G19)","v":0},null,null,{"$f":"SUM(J15:J19)","v":0},null,null,{"$f":"SUM(M15:M19)","v":0},null,null,{"$f":"SUM(P15:P19)","v":0},null,null,{"$f":"SUM(S15:S19)","v":0},"TOTAL ASCENSION",null,null,{"$f":"SUM(D11+G11+J11+M11+P11+S11+D20+G20+J20+M20+P20+S20)","v":0}]
[]
[null,"Equipe","Total personnel"]
[null,{"$f":"B15","v":"Christine"},{"$f":"SUM(D6+G6+J6+M6+P6+S6+D15+G15+J15+M15+P15+S15)","v":0}]
[null,{"$f":"B16","v":"Eric"},{"$f":"SUM(D7+G7+J7+M7+P7+S7+D16+G16+J16+M16+P16+S16)","v":0}]
[null,{"$f":"B17","v":"Audrey"},0]
[null,{"$f":"B18","v":"Julien"},0]
[null,{"$f":"B19","v":"Julien"},0]
[]
[]
[]
[]
[]
[]
[]
[null,null,"VOIE 1",null,null,"VOIE 2",null,null,"VOIE 3",null,null,"VOIE 4",null,null,"VOIE 5",null,null,"VOIE 6"]
[null,"Equipe","Nb anneaux","Mètres",null,"Nb anneaux","Mètres",null,"Nb anneaux","Mètres",null,"Nb anneaux","Mètres",null,"Nb anneaux","Mètres",null,"Nb anneaux","Mètres"]
[null,"Sylvain","1er anneau",{"$f":"VLOOKUP(C37,DEBUT!$G$7:$H$11,2,FALSE)","v":3},null,"Voie sortie",{"$f":"VLOOKUP(F37,DEBUT!$G$7:$H$11,2,FALSE)","v":7.5},null,"N'a pas grimpé",{"$f":"VLOOKUP(I37,DEBUT!$G$7:$H$11,2,FALSE)","v":0},null,"N'a pas grimpé",{"$f":"VLOOKUP(L37,DEBUT!$G$7:$H$11,2,FALSE)","v":0},null,"N'a pas grimpé",{"$f":"VLOOKUP(O37,DEBUT!$G$7:$H$11,2,FALSE)","v":0},null,"N'a pas grimpé",{"$f":"VLOOKUP(R37,DEBUT!$G$7:$H$11,2,FALSE)","v":0}]
[null,"Sylvain","3e anneau",{"$f":"VLOOKUP(C38,DEBUT!$G$7:$H$11,2,FALSE)","v":6},null,"Voie sortie",{"$f":"VLOOKUP(F38,DEBUT!$G$7:$H$11,2,FALSE)","v":7.5},null,"N'a pas grimpé",{"$f":"VLOOKUP(I38,DEBUT!$G$7:$H$11,2,FALSE)","v":0},null,"N'a pas grimpé",{"$f":"VLOOKUP(L38,DEBUT!$G$7:$H$11,2,FALSE)","v":0},null,"N'a pas grimpé",{"$f":"VLOOKUP(O38,DEBUT!$G$7:$H$11,2,FALSE)","v":0},null,"N'a pas grimpé",{"$f":"VLOOKUP(R38,DEBUT!$G$7:$H$11,2,FALSE)","v":0}]
[null,"Sylvain","3e anneau",{"$f":"VLOOKUP(C39,DEBUT!$G$7:$H$11,2,FALSE)","v":6},null,"Voie sortie",{"$f":"VLOOKUP(F39,DEBUT!$G$7:$H$11,2,FALSE)","v":7.5},null,"N'a pas grimpé",{"$f":"VLOOKUP(I39,DEBUT!$G$7:$H$11,2,FALSE)","v":0},null,"N'a pas grimpé",{"$f":"VLOOKUP(L39,DEBUT!$G$7:$H$11,2,FALSE)","v":0},null,"N'a pas grimpé",{"$f":"VLOOKUP(O39,DEBUT!$G$7:$H$11,2,FALSE)","v":0},null,"N'a pas grimpé",{"$f":"VLOOKUP(R39,DEBUT!$G$7:$H$11,2,FALSE)","v":0}]
[null,"Nadine","Voie sortie",{"$f":"VLOOKUP(C40,DEBUT!$G$7:$H$11,2,FALSE)","v":7.5},null,"N'a pas grimpé",{"$f":"VLOOKUP(F40,DEBUT!$G$7:$H$11,2,FALSE)","v":0},null,"N'a pas grimpé",{"$f":"VLOOKUP(I40,DEBUT!$G$7:$H$11,2,FALSE)","v":0},null,"N'a pas grimpé",{"$f":"VLOOKUP(L40,DEBUT!$G$7:$H$11,2,FALSE)","v":0},null,"N'a pas grimpé",{"$f":"VLOOKUP(O40,DEBUT!$G$7:$H$11,2,FALSE)","v":0},null,"N'a pas grimpé",{"$f":"VLOOKUP(R40,DEBUT!$G$7:$H$11,2,FALSE)","v":0}]
[null,"Sylvain","1er anneau",{"$f":"VLOOKUP(C41,DEBUT!$G$7:$H$11,2,FALSE)","v":3},null,"N'a pas grimpé",{"$f":"VLOOKUP(F41,DEBUT!$G$7:$H$11,2,FALSE)","v":0},null,"N'a pas grimpé",{"$f":"VLOOKUP(I41,DEBUT!$G$7:$H$11,2,FALSE)","v":0},null,"N'a pas grimpé",{"$f":"VLOOKUP(L41,DEBUT!$G$7:$H$11,2,FALSE)","v":0},null,"N'a pas grimpé",{"$f":"VLOOKUP(O41,DEBUT!$G$7:$H$11,2,FALSE)","v":0},null,"N'a pas grimpé",{"$f":"VLOOKUP(R41,DEBUT!$G$7:$H$11,2,FALSE)","v":0}]
[null,"EQUIPE",null,{"$f":"SUM(D37:D41)","v":25.5},null,null,{"$f":"SUM(G37:G41)","v":22.5},null,null,{"$f":"SUM(J37:J41)","v":0},null,null,{"$f":"SUM(M37:M41)","v":0},null,null,{"$f":"SUM(P37:P41)","v":0},null,null,{"$f":"SUM(S37:S41)","v":0}]
[]
[null,null,"VOIE 7",null,null,"VOIE 8",null,null,"VOIE 9",null,null,"VOIE 10",null,null,"VOIE 11",null,null,"VOIE 12"]
[null,"Equipe","Nb anneaux","Mètres",null,"Nb anneaux","Mètres",null,"Nb anneaux","Mètres",null,"Nb anneaux","Mètres",null,"Nb anneaux","Mètres",null,"Nb anneaux","Mètres"]
[null,{"$f":"B37","v":"Sylvain"},"N'a pas grimpé",{"$f":"VLOOKUP(C46,DEBUT!$G$7:$H$11,2,FALSE)","v":0},null,"N'a pas grimpé",{"$f":"VLOOKUP(F46,DEBUT!$G$7:$H$11,2,FALSE)","v":0},null,"N'a pas grimpé",{"$f":"VLOOKUP(I46,DEBUT!$G$7:$H$11,2,FALSE)","v":0},null,"Voie sortie",{"$f":"VLOOKUP(L46,DEBUT!$G$7:$H$11,2,FALSE)","v":7.5},null,"Voie sortie",{"$f":"VLOOKUP(O46,DEBUT!$G$7:$H$11,2,FALSE)","v":7.5},null,"N'a pas grimpé",{"$f":"VLOOKUP(R46,DEBUT!$G$7:$H$11,2,FALSE)","v":0}]
[null,{"$f":"B38","v":"Sylvain"},"N'a pas grimpé",{"$f":"VLOOKUP(C47,DEBUT!$G$7:$H$11,2,FALSE)","v":0},null,"N'a pas grimpé",{"$f":"VLOOKUP(F47,DEBUT!$G$7:$H$11,2,FALSE)","v":0},null,"N'a pas grimpé",{"$f":"VLOOKUP(I47,DEBUT!$G$7:$H$11,2,FALSE)","v":0},null,"N'a pas grimpé",{"$f":"VLOOKUP(L47,DEBUT!$G$7:$H$11,2,FALSE)","v":0},null,"Voie sortie",{"$f":"VLOOKUP(O47,DEBUT!$G$7:$H$11,2,FALSE)","v":7.5},null,"N'a pas grimpé",{"$f":"VLOOKUP(R47,DEBUT!$G$7:$H$11,2,FALSE)","v":0}]
[null,{"$f":"B39","v":"Sylvain"},"N'a pas grimpé",{"$f":"VLOOKUP(C48,DEBUT!$G$7:$H$11,2,FALSE)","v":0},null,"N'a pas grimpé",{"$f":"VLOOKUP(F48,DEBUT!$G$7:$H$11,2,FALSE)","v":0},null,"N'a pas grimpé",{"$f":"VLOOKUP(I48,DEBUT!$G$7:$H$11,2,FALSE)","v":0},null,"N'a pas grimpé",{"$f":"VLOOKUP(L48,DEBUT!$G$7:$H$11,2,FALSE)","v":0},null,"Voie sortie",{"$f":"VLOOKUP(O48,DEBUT!$G$7:$H$11,2,FALSE)","v":7.5},null,"N'a pas grimpé",{"$f":"VLOOKUP(R48,DEBUT!$G$7:$H$11,2,FALSE)","v":0}]
[null,{"$f":"B40","v":"Nadine"},"N'a pas grimpé",{"$f":"VLOOKUP(C49,DEBUT!$G$7:$H$11,2,FALSE)","v":0},null,"N'a pas grimpé",{"$f":"VLOOKUP(F49,DEBUT!$G$7:$H$11,2,FALSE)","v":0},null,"N'a pas grimpé",{"$f":"VLOOKUP(I49,DEBUT!$G$7:$H$11,2,FALSE)","v":0},null,"N'a pas grimpé",{"$f":"VLOOKUP(L49,DEBUT!$G$7:$H$11,2,FALSE)","v":0},null,"Voie sortie",{"$f":"VLOOKUP(O49,DEBUT!$G$7:$H$11,2,FALSE)","v":7.5},null,"N'a pas grimpé",{"$f":"VLOOKUP(R49,DEBUT!$G$7:$H$11,2,FALSE)","v":0}]
[null,{"$f":"B41","v":"Sylvain"},"N'a pas grimpé",{"$f":"VLOOKUP(C50,DEBUT!$G$7:$H$11,2,FALSE)","v":0},null,"N'a pas grimpé",{"$f":"VLOOKUP(F50,DEBUT!$G$7:$H$11,2,FALSE)","v":0},null,"N'a pas grimpé",{"$f":"VLOOKUP(I50,DEBUT!$G$7:$H$11,2,FALSE)","v":0},null,"N'a pas grimpé",{"$f":"VLOOKUP(L50,DEBUT!$G$7:$H$11,2,FALSE)","v":0},null,"N'a pas grimpé",{"$f":"VLOOKUP(O50,DEBUT!$G$7:$H$11,2,FALSE)","v":0},null,"N'a pas grimpé",{"$f":"VLOOKUP(R50,DEBUT!$G$7:$H$11,2,FALSE)","v":0}]
[null,"EQUIPE",null,{"$f":"SUM(D46:D50)","v":0},null,null,{"$f":"SUM(G46:G50)","v":0},null,null,{"$f":"SUM(J46:J50)","v":0},null,null,{"$f":"SUM(M46:M50)","v":7.5},null,null,{"$f":"SUM(P46:P50)","v":30},null,null,{"$f":"SUM(S46:S50)","v":0},"TOTAL ASCENSION",null,null,{"$f":"SUM(D42+G42+J42+M42+P42+S42+D51+G51+J51+M51+P51+S51)","v":85.5}]
[]
[null,"Equipe","Total personnel"]
[null,{"$f":"B46","v":"Sylvain"},{"$f":"SUM(D37+G37+J37+M37+P37+S37+D46+G46+J46+M46+P46+S46)","v":25.5}]
[null,{"$f":"B47","v":"Sylvain"},{"$f":"SUM(D38+G38+J38+M38+P38+S38+D47+G47+J47+M47+P47+S47)","v":21}]
[null,{"$f":"B48","v":"Sylvain"},21]
[null,{"$f":"B49","v":"Nadine"},15]
[null,{"$f":"B50","v":"Sylvain"},3]
[]
[]
[]
[]
[]
[]
[null,null,"VOIE 1",null,null,"VOIE 2",null,null,"VOIE 3",null,null,"VOIE 4",null,null,"VOIE 5",null,null,"VOIE 6"]
[null,"Equipe","Nb anneaux","Mètres",null,"Nb anneaux","Mètres",null,"Nb anneaux","Mètres",null,"Nb anneaux","Mètres",null,"Nb anneaux","Mètres",null,"Nb anneaux","Mètres"]
[null,"Cécile","1er anneau",{"$f":"VLOOKUP(C67,DEBUT!$G$7:$H$11,2,FALSE)","v":3},null,"Voie sortie",{"$f":"VLOOKUP(F67,DEBUT!$G$7:$H$11,2,FALSE)","v":7.5},null,"Voie sortie",{"$f":"VLOOKUP(I67,DEBUT!$G$7:$H$11,2,FALSE)","v":7.5},null,"N'a pas grimpé",{"$f":"VLOOKUP(L67,DEBUT!$G$7:$H$11,2,FALSE)","v":0},null,"N'a pas grimpé",{"$f":"VLOOKUP(O67,DEBUT!$G$7:$H$11,2,FALSE)","v":0},null,"N'a pas grimpé",{"$f":"VLOOKUP(R67,DEBUT!$G$7:$H$11,2,FALSE)","v":0}]
[null,"Nicole","3e anneau",{"$f":"VLOOKUP(C68,DEBUT!$G$7:$H$11,2,FALSE)","v":6},null,"Voie sortie",{"$f":"VLOOKUP(F68,DEBUT!$G$7:$H$11,2,FALSE)","v":7.5},null,"Voie sortie",{"$f":"VLOOKUP(I68,DEBUT!$G$7:$H$11,2,FALSE)","v":7.5},null,"N'a pas grimpé",{"$f":"VLOOKUP(L68,DEBUT!$G$7:$H$11,2,FALSE)","v":0},null,"N'a pas grimpé",{"$f":"VLOOKUP(O68,DEBUT!$G$7:$H$11,2,FALSE)","v":0},null,"N'a pas grimpé",{"$f":"VLOOKUP(R68,DEBUT!$G$7:$H$11,2,FALSE)","v":0}]
[null,"Abdel","3e anneau",{"$f":"VLOOKUP(C69,DEBUT!$G$7:$H$11,2,FALSE)","v":6},null,"Voie sortie",{"$f":"VLOOKUP(F69,DEBUT!$G$7:$H$11,2,FALSE)","v":7.5},null,"Voie sortie",{"$f":"VLOOKUP(I69,DEBUT!$G$7:$H$11,2,FALSE)","v":7.5},null,"N'a pas grimpé",{"$f":"VLOOKUP(L69,DEBUT!$G$7:$H$11,2,FALSE)","v":0},null,"N'a pas grimpé",{"$f":"VLOOKUP(O69,DEBUT!$G$7:$H$11,2,FALSE)","v":0},null,"N'a pas grimpé",{"$f":"VLOOKUP(R69,DEBUT!$G$7:$H$11,2,FALSE)","v":0}]
[null,"Michel","Voie sortie",{"$f":"VLOOKUP(C70,DEBUT!$G$7:$H$11,2,FALSE)","v":7.5},null,"N'a pas grimpé",{"$f":"VLOOKUP(F70,DEBUT!$G$7:$H$11,2,FALSE)","v":0},null,"Voie sortie",{"$f":"VLOOKUP(I70,DEBUT!$G$7:$H$11,2,FALSE)","v":7.5},null,"N'a pas grimpé",{"$f":"VLOOKUP(L70,DEBUT!$G$7:$H$11,2,FALSE)","v":0},null,"N'a pas grimpé",{"$f":"VLOOKUP(O70,DEBUT!$G$7:$H$11,2,FALSE)","v":0},null,"N'a pas grimpé",{"$f":"VLOOKUP(R70,DEBUT!$G$7:$H$11,2,FALSE)","v":0}]
[null,"Sylvain","1er anneau",{"$f":"VLOOKUP(C71,DEBUT!$G$7:$H$11,2,FALSE)","v":3},null,"N'a pas grimpé",{"$f":"VLOOKUP(F71,DEBUT!$G$7:$H$11,2,FALSE)","v":0},null,"N'a pas grimpé",{"$f":"VLOOKUP(I71,DEBUT!$G$7:$H$11,2,FALSE)","v":0},null,"N'a pas grimpé",{"$f":"VLOOKUP(L71,DEBUT!$G$7:$H$11,2,FALSE)","v":0},null,"N'a pas grimpé",{"$f":"VLOOKUP(O71,DEBUT!$G$7:$H$11,2,FALSE)","v":0},null,"N'a pas grimpé",{"$f":"VLOOKUP(R71,DEBUT!$G$7:$H$11,2,FALSE)","v":0}]
[null,"EQUIPE",null,{"$f":"SUM(D67:D71)","v":25.5},null,null,{"$f":"SUM(G67:G71)","v":22.5},null,null,{"$f":"SUM(J67:J71)","v":30},null,null,{"$f":"SUM(M67:M71)","v":0},null,null,{"$f":"SUM(P67:P71)","v":0},null,null,{"$f":"SUM(S67:S71)","v":0}]
[]
[null,null,"VOIE 7",null,null,"VOIE 8",null,null,"VOIE 9",null,null,"VOIE 10",null,null,"VOIE 11",null,null,"VOIE 12"]
[null,"Equipe","Nb anneaux","Mètres",null,"Nb anneaux","Mètres",null,"Nb anneaux","Mètres",null,"Nb anneaux","Mètres",null,"Nb anneaux","Mètres",null,"Nb anneaux","Mètres"]
[null,{"$f":"B67","v":"Cécile"},"N'a pas grimpé",{"$f":"VLOOKUP(C76,DEBUT!$G$7:$H$11,2,FALSE)","v":0},null,"N'a pas grimpé",{"$f":"VLOOKUP(F76,DEBUT!$G$7:$H$11,2,FALSE)","v":0},null,"N'a pas grimpé",{"$f":"VLOOKUP(I76,DEBUT!$G$7:$H$11,2,FALSE)","v":0},null,"Voie sortie",{"$f":"VLOOKUP(L76,DEBUT!$G$7:$H$11,2,FALSE)","v":7.5},null,"Voie sortie",{"$f":"VLOOKUP(O76,DEBUT!$G$7:$H$11,2,FALSE)","v":7.5},null,"N'a pas grimpé",{"$f":"VLOOKUP(R76,DEBUT!$G$7:$H$11,2,FALSE)","v":0}]
[null,{"$f":"B68","v":"Nicole"},"N'a pas grimpé",{"$f":"VLOOKUP(C77,DEBUT!$G$7:$H$11,2,FALSE)","v":0},null,"N'a pas grimpé",{"$f":"VLOOKUP(F77,DEBUT!$G$7:$H$11,2,FALSE)","v":0},null,"Voie sortie",{"$f":"VLOOKUP(I77,DEBUT!$G$7:$H$11,2,FALSE)","v":7.5},null,"N'a pas grimpé",{"$f":"VLOOKUP(L77,DEBUT!$G$7:$H$11,2,FALSE)","v":0},null,"Voie sortie",{"$f":"VLOOKUP(O77,DEBUT!$G$7:$H$11,2,FALSE)","v":7.5},null,"N'a pas grimpé",{"$f":"VLOOKUP(R77,DEBUT!$G$7:$H$11,2,FALSE)","v":0}]
[null,{"$f":"B69","v":"Abdel"},"N'a pas grimpé",{"$f":"VLOOKUP(C78,DEBUT!$G$7:$H$11,2,FALSE)","v":0},null,"N'a pas grimpé",{"$f":"VLOOKUP(F78,DEBUT!$G$7:$H$11,2,FALSE)","v":0},null,"N'a pas grimpé",{"$f":"VLOOKUP(I78,DEBUT!$G$7:$H$11,2,FALSE)","v":0},null,"N'a pas grimpé",{"$f":"VLOOKUP(L78,DEBUT!$G$7:$H$11,2,FALSE)","v":0},null,"Voie sortie",{"$f":"VLOOKUP(O78,DEBUT!$G$7:$H$11,2,FALSE)","v":7.5},null,"N'a pas grimpé",{"$f":"VLOOKUP(R78,DEBUT!$G$7:$H$11,2,FALSE)","v":0}]
[null,{"$f":"B70","v":"Michel"},"N'a pas grimpé",{"$f":"VLOOKUP(C79,DEBUT!$G$7:$H$11,2,FALSE)","v":0},null,"N'a pas grimpé",{"$f":"VLOOKUP(F79,DEBUT!$G$7:$H$11,2,FALSE)","v":0},null,"N'a pas grimpé",{"$f":"VLOOKUP(I79,DEBUT!$G$7:$H$11,2,FALSE)","v":0},null,"N'a pas grimpé",{"$f":"VLOOKUP(L79,DEBUT!$G$7:$H$11,2,FALSE)","v":0},null,"Voie sortie",{"$f":"VLOOKUP(O79,DEBUT!$G$7:$H$11,2,FALSE)","v":7.5},null,"N'a pas grimpé",{"$f":"VLOOKUP(R79,DEBUT!$G$7:$H$11,2,FALSE)","v":0}]
[null,{"$f":"B71","v":"Sylvain"},"N'a pas grimpé",{"$f":"VLOOKUP(C80,DEBUT!$G$7:$H$11,2,FALSE)","v":0},null,"N'a pas grimpé",{"$f":"VLOOKUP(F80,DEBUT!$G$7:$H$11,2,FALSE)","v":0},null,"N'a pas grimpé",{"$f":"VLOOKUP(I80,DEBUT!$G$7:$H$11,2,FALSE)","v":0},null,"N'a pas grimpé",{"$f":"VLOOKUP(L80,DEBUT!$G$7:$H$11,2,FALSE)","v":0},null,"N'a pas grimpé",{"$f":"VLOOKUP(O80,DEBUT!$G$7:$H$11,2,FALSE)","v":0},null,"N'a pas grimpé",{"$f":"VLOOKUP(R80,DEBUT!$G$7:$H$11,2,FALSE)","v":0}]
[null,"EQUIPE",null,{"$f":"SUM(D76:D80)","v":0},null,null,{"$f":"SUM(G76:G80)","v":0},null,null,{"$f":"SUM(J76:J80)","v":7.5},null,null,{"$f":"SUM(M76:M80)","v":7.5},null,null,{"$f":"SUM(P76:P80)","v":30},null,null,{"$f":"SUM(S76:S80)","v":0},"TOTAL ASCENSION",null,null,{"$f":"SUM(D72+G72+J72+M72+P72+S72+D81+G81+J81+M81+P81+S81)","v":123}]
[]
[null,"Equipe","Total personnel"]
[null,{"$f":"B76","v":"Cécile"},{"$f":"SUM(D67+G67+J67+M67+P67+S67+D76+G76+J76+M76+P76+S76)","v":33}]
[null,{"$f":"B77","v":"Nicole"},{"$f":"SUM(D68+G68+J68+M68+P68+S68+D77+G77+J77+M77+P77+S77)","v":36}]
[null,{"$f":"B78","v":"Abdel"},28.5]
[null,{"$f":"B79","v":"Michel"},22.5]
[null,{"$f":"B80","v":"Sylvain"},3]

{"sheet":"MACROS","index":2,"n_rows":18,"n_cols":10,"rows_kept":18,"cut":false,"hidden":false,"merged":[[16,7,16,8]]}
["salut"]
["11:11:07"]
[null,"MACROS UTILISABLES SUR N'IMPORTE QUELLE FEUILLE"]
[]
[]
[]
[]
[]
[]
[]
[null,"MACROS OU IL FAUDRA CHANGER LE NOM DE LA CELLULE, LIGNE OU COLONNE (et le nom de la macro si elle doit être dupliquée), et/ou LA VALEUR"]
[]
[]
[]
[]
[]
[null,null,null,null,null,null,"Effacer d'abord A1","Bien définir le format de cellule",null,5]
[null,"MACROS OU IL FAUDRA CHANGER LE NOM DE LA FEUILLE"]

{"sheet":"APPEL","index":3,"n_rows":38,"n_cols":28,"rows_kept":38,"cut":false,"hidden":false,"merged":[[0,19,0,20],[0,22,0,23],[0,25,0,26],[0,1,0,2],[0,4,0,5],[0,7,0,8],[0,10,0,11],[0,13,0,14],[0,16,0,17]]}
[null,"1TU-GA",null,null,"1TU-GA2",null,null,"4e5",null,null,"1EVS",null,null,"1GA",null,null,"1TU",null,null,"STAGE",null,null,"classe8",null,null,"classe9"]
[null,"NOMS","PRENOMS","sexe","NOMS","PRENOMS","sexe","NOMS","PRENOMS","sexe","NOMS","PRENOMS","sexe","NOMS","PRENOMS","sexe","NOMS","PRENOMS","sexe","NOMS","PRENOMS","sexe","NOMS","PRENOMS","sexe","NOMS","PRENOMS","sexe"]
[1,null,"Abraham","g",null,"Ali Malek","g"]
[2,null,"Aimane","f",null,"Aline","f",null,"Christine"]
[3,null,"Amel","f",null,"Alya","f",null,"Eric"]
[4,null,"Amira","f",null,"Amine","g",null,"Audrey"]
[5,null,"Anis","g",null,"Badis","g",null,"Julien"]
[6,null,"Beyza","f",null,"Jean-Michaël","g",null,"Marie"]
[7,null,"Clarky","g",null,"Jessica","f",null,"Nadine"]
[8,null,"Djamel","g",null,"Kaïna","f",null,"Sylvain"]
[9,null,"Dounia","f",null,"Katy","f",null,"Céline"]
[10,null,"Eyat","g",null,"Léonard","g",null,"Paul"]
[11,null,"Fatima-Zohra","f",null,"Marinho","g",null,"Lilian "]
[12,null,"Hana","f",null,"Mervé","f",null,"Noémie"]
[13,null,"Ikram","f",null,"Mouhamadou Moustapha","g",null,"Baptiste"]
[14,null,"Jairzhino","g",null,"Rayane","g",null,"Michel"]
[15,null,"Mergim","f",null,"Sania","f",null,"Abdel"]
[16,null,"Myriam","f",null,"Sonia","f",null,"Nicole"]
[17,null,"Serone","f",null,"Suzana","f",null,"Cécile"]
[18,null,"Suha","f",null,"Thomas","g"]
[19,null,"Yassine","g"]
[20]
[21]
[22]
[23]
[24]
[25]
[26]
[27]
[28]
[29]
[30]
[31]
[32]
[33]
[34]
[35]
[36]

{"sheet":"DEBUT","index":4,"n_rows":11,"n_cols":28,"rows_kept":11,"cut":false,"hidden":false,"merged":[[0,1,2,4],[0,11,2,16],[0,6,2,9]]}
[null,"MON BAREME 1",null,null,null,null,"BAREME PTS MATCH",null,null,null,null,"MES DONNES DE VALIDATION MODIFIABLES"]
[]
[]
[null,"Hauteur","Mètres","CRITERE 3","CRITERE 4",null,"POINTS","COMPETENCE","C3","C4",null,"DV1","DV2","DV3","DV4","DV5","DV6","DV7","DV8","DV9","DV10","DV11","DV12","DV13","DV14","DV15","DV16","DV17"]
[null,null,null,null,null,null,"et en +","Note","Commentaire","ET .."]
[null,"N'a pas grimpé",0]
[null,"1er anneau",3,null,null,null,"N'a pas grimpé",0]
[null,"2e anneau",4.5,null,null,null,"1er anneau",3]
[null,"3e anneau",6,null,null,null,"2e anneau",4.5]
[null,"Voie sortie",7.5,null,null,null,"3e anneau",6]
[null,null,null,null,null,null,"Voie sortie",7.5]